[Event "NJSK 2023 Jeugd A"]
[Site "Almelo, Netherlands"]
[Date "2023.05.03"]
[Round "4.3"]
[White "Moskalets, Sofiia"]
[Black "Slagboom, Leandro"]
[Result "1/2-1/2"]
[TimeControl "90min/40moves + 30min + 30sec/move"]
[WhiteElo "1722"]
[BlackElo "2228"]

1. e4 {[%clk 01:30:56]} {[%emt 00:00:02]} e6 {[%clk 01:30:43]} {[%emt
00:00:18]} 2. d4 {[%clk 01:31:17]} {[%emt 00:00:09]} d5 {[%clk 01:31:09]}
{[%emt 00:00:04]} 3. Nd2 {[%clk 01:31:40]} {[%emt 00:00:07]} c5 {[%clk
01:31:21]} {[%emt 00:00:18]} 4. exd5 {[%clk 01:31:43]} {[%emt 00:00:26]} Qxd5
{[%clk 01:31:25]} {[%emt 00:00:26]} 5. Ngf3 {[%clk 01:32:05]} {[%emt 00:00:08]}
cxd4 {[%clk 01:31:32]} {[%emt 00:00:24]} 6. Bc4 {[%clk 01:32:28]} {[%emt
00:00:07]} Qd6 {[%clk 01:30:26]} {[%emt 00:01:37]} 7. O-O {[%clk 01:32:41]}
{[%emt 00:00:17]} Nf6 {[%clk 01:30:45]} {[%emt 00:00:10]} 8. Nb3 {[%clk
01:32:32]} {[%emt 00:00:39]} Nc6 {[%clk 01:31:02]} {[%emt 00:00:13]} 9. Nbxd4
{[%clk 01:32:34]} {[%emt 00:00:28]} Nxd4 {[%clk 01:31:25]} {[%emt 00:00:07]} 10.
Nxd4 {[%clk 01:32:59]} {[%emt 00:00:06]} Be7 {[%clk 01:31:33]} {[%emt
00:00:22]} 11. c3 {[%clk 01:24:54]} {[%emt 00:08:34]} O-O {[%clk 01:30:42]}
{[%emt 00:01:22]} 12. Qf3 {[%clk 01:06:22]} {[%emt 00:19:03]} Qc7 {[%clk
01:30:45]} {[%emt 00:00:27]} 13. Bd3 {[%clk 01:00:11]} {[%emt 00:06:40]} Bd7
{[%clk 01:28:08]} {[%emt 00:03:07]} 14. Re1 {[%clk 00:54:38]} {[%emt 00:06:04]}
Nd5 {[%clk 01:15:32]} {[%emt 00:13:06]} 15. Nf5 {[%clk 00:38:36]} {[%emt
00:16:32]} exf5 {[%clk 01:13:47]} {[%emt 00:02:15]} 16. Qxd5 {[%clk 00:38:59]}
{[%emt 00:00:07]} Be6 {[%clk 01:13:07]} {[%emt 00:01:09]} 17. Qf3 {[%clk
00:37:32]} {[%emt 00:01:57]} g6 {[%clk 01:12:44]} {[%emt 00:00:53]} 18. Bf4
{[%clk 00:36:40]} {[%emt 00:01:22]} Qb6 {[%clk 01:11:46]} {[%emt 00:01:27]} 19.
Re2 {[%clk 00:26:15]} {[%emt 00:10:55]} Bf6 {[%clk 01:09:32]} {[%emt 00:02:44]}
20. Bh6 {[%clk 00:22:45]} {[%emt 00:04:01]} Rfd8 {[%clk 01:06:02]} {[%emt
00:04:00]} 21. Rae1 {[%clk 00:17:57]} {[%emt 00:05:18]} Bg7 {[%clk 00:45:19]}
{[%emt 00:21:14]} 22. Bg5 {[%clk 00:13:08]} {[%emt 00:05:19]} Rd7 {[%clk
00:42:19]} {[%emt 00:03:30]} 23. h4 {[%clk 00:12:00]} {[%emt 00:01:37]} h6
{[%clk 00:37:59]} {[%emt 00:04:49]} 24. Bf4 {[%clk 00:11:48]} {[%emt 00:00:40]}
Rad8 {[%clk 00:27:15]} {[%emt 00:11:16]} 25. Bc2 {[%clk 00:11:29]} {[%emt
00:00:49]} Qxb2 {[%clk 00:16:01]} {[%emt 00:11:44]} 26. Bxf5 {[%clk 00:08:36]}
{[%emt 00:03:23]} Qxc3 {[%clk 00:15:43]} {[%emt 00:00:48]} 27. Re3 {[%clk
00:07:11]} {[%emt 00:01:55]} Qd4 {[%clk 00:11:43]} {[%emt 00:04:30]} 28. Bxe6
{[%clk 00:06:33]} {[%emt 00:01:08]} fxe6 {[%clk 00:12:09]} {[%emt 00:00:04]} 29.
Rxe6 {[%clk 00:06:30]} {[%emt 00:00:32]} Rf8 {[%clk 00:10:14]} {[%emt
00:02:25]} 30. R6e4 {[%clk 00:06:29]} {[%emt 00:00:32]} Qd5 {[%clk 00:09:34]}
{[%emt 00:01:11]} 31. Qg4 {[%clk 00:04:11]} {[%emt 00:02:47]} Kh7 {[%clk
00:06:44]} {[%emt 00:03:20]} 32. Bg3 {[%clk 00:04:05]} {[%emt 00:00:36]} Rdf7
{[%clk 00:06:11]} {[%emt 00:01:03]} 33. Re6 {[%clk 00:03:24]} {[%emt 00:01:11]}
Qf5 {[%clk 00:04:47]} {[%emt 00:01:54]} 34. Qb4 {[%clk 00:03:09]} {[%emt
00:00:45]} a6 {[%emt 00:02:27]} 35. R1e3 {[%clk 00:03:07]} Qc2 {[%clk
00:03:17]} {[%emt 00:00:34]} 36. Re2 {[%clk 00:03:09]} {[%emt 00:00:29]} Qd1+
{[%clk 00:02:51]} {[%emt 00:00:56]} 37. Kh2 {[%clk 00:03:18]} {[%emt 00:00:21]}
Qd5 {[%clk 00:02:49]} {[%emt 00:00:32]} 38. Rd6 {[%clk 00:02:57]} {[%emt
00:00:52]} Qf5 {[%clk 00:01:55]} {[%emt 00:01:23]} 39. Ree6 {[%clk 00:02:09]}
{[%emt 00:01:18]} Bf6 {[%clk 00:01:12]} {[%emt 00:01:13]} 40. Qb6 {[%clk
00:00:55]} {[%emt 00:01:44]} Kg7 {[%clk 00:00:42]} {[%emt 00:01:01]} 41. Kg1
{[%clk 00:17:03]} {[%emt 00:14:22]} g5 {[%clk 00:21:25]} {[%emt 00:09:47]} 42.
h5 {[%clk 00:12:28]} {[%emt 00:05:05]} g4 {[%clk 00:18:42]} {[%emt 00:03:13]}
43. Qb4 {[%clk 00:05:32]} {[%emt 00:07:26]} Qxh5 {[%clk 00:15:33]} {[%emt
00:03:39]} 44. Re4 {[%clk 00:05:32]} {[%emt 00:00:30]} Kh7 {[%clk 00:08:33]}
{[%emt 00:07:30]} 45. Rxg4 {[%clk 00:04:51]} {[%emt 00:01:11]} Qf5 {[%clk
00:08:08]} {[%emt 00:00:55]} 46. Rf4 {[%clk 00:04:21]} {[%emt 00:01:01]} Qc2
{[%clk 00:08:06]} {[%emt 00:00:32]} 47. Qb6 {[%clk 00:02:51]} {[%emt 00:02:01]}
Bg7 {[%clk 00:05:27]} {[%emt 00:03:09]} 48. Rxf7 {[%clk 00:02:37]} {[%emt
00:00:44]} Rxf7 {[%clk 00:05:47]} {[%emt 00:00:10]} 49. Qe3 {[%clk 00:02:15]}
{[%emt 00:00:52]} Rf5 {[%clk 00:04:50]} {[%emt 00:01:27]} 50. Qd3 {[%clk
00:02:17]} {[%emt 00:00:28]} 1/2-1/2

[Event "NJSK 2023 Jeugd A"]
[Site "Almelo, Netherlands"]
[Date "2023.05.03"]
[Round "4.4"]
[White "Achuthan, Dylan"]
[Black "Smid, Jelle"]
[Result "1-0"]
[TimeControl "90min/40moves + 30min + 30sec/move"]
[WhiteElo "2045"]
[BlackElo "1776"]

1. d4 {[%clk 01:29:11]} {[%emt 00:01:48]} e6 {[%clk 01:30:08]} {[%emt
00:00:52]} 2. Nf3 {[%clk 01:29:13]} {[%emt 00:00:28]} d5 {[%clk 01:30:25]}
{[%emt 00:00:13]} 3. c4 {[%clk 01:29:20]} {[%emt 00:00:22]} a6 {[%clk
01:30:13]} {[%emt 00:00:42]} 4. e3 {[%clk 01:29:22]} {[%emt 00:00:29]} Nf6
{[%clk 01:30:09]} {[%emt 00:00:34]} 5. Be2 {[%clk 01:26:21]} {[%emt 00:03:30]}
Be7 {[%clk 01:28:01]} {[%emt 00:02:39]} 6. O-O {[%clk 01:26:23]} {[%emt
00:00:29]} O-O {[%clk 01:28:23]} {[%emt 00:00:08]} 7. b3 {[%clk 01:24:57]}
{[%emt 00:01:57]} Nbd7 {[%clk 01:26:12]} {[%emt 00:02:40]} 8. Nc3 {[%clk
01:24:46]} {[%emt 00:00:41]} c6 {[%clk 01:21:57]} {[%emt 00:04:44]} 9. Qc2
{[%clk 01:20:05]} {[%emt 00:05:11]} Re8 {[%clk 01:17:15]} {[%emt 00:05:12]} 10.
Bb2 {[%clk 01:17:07]} {[%emt 00:03:28]} Bd6 {[%clk 01:14:52]} {[%emt 00:02:52]}
11. Rad1 {[%clk 01:00:29]} {[%emt 00:17:08]} Qc7 {[%clk 01:11:38]} {[%emt
00:03:45]} 12. e4 {[%clk 00:48:41]} {[%emt 00:12:18]} dxe4 {[%clk 01:11:54]}
{[%emt 00:00:15]} 13. Nxe4 {[%clk 00:48:52]} {[%emt 00:00:19]} Nxe4 {[%clk
01:12:11]} {[%emt 00:00:12]} 14. Qxe4 {[%clk 00:49:20]} {[%emt 00:00:02]} f6
{[%clk 00:58:54]} {[%emt 00:13:48]} 15. Bd3 {[%clk 00:36:35]} {[%emt 00:13:14]}
Nf8 {[%clk 00:57:33]} {[%emt 00:01:50]} 16. Rfe1 {[%clk 00:32:46]} {[%emt
00:04:20]} Bd7 {[%clk 00:55:09]} {[%emt 00:02:53]} 17. c5 {[%clk 00:28:49]}
{[%emt 00:04:28]} Bf4 {[%clk 00:53:22]} {[%emt 00:02:17]} 18. g3 {[%clk
00:28:06]} {[%emt 00:01:13]} Bh6 {[%clk 00:53:45]} {[%emt 00:00:06]} 19. Nh4
{[%clk 00:21:22]} {[%emt 00:07:15]} Red8 {[%clk 00:50:56]} {[%emt 00:03:18]} 20.
Bc4 {[%clk 00:20:35]} {[%emt 00:01:18]} Kh8 {[%clk 00:49:14]} {[%emt 00:02:12]}
21. f4 {[%clk 00:19:19]} {[%emt 00:01:46]} Re8 {[%clk 00:44:42]} {[%emt
00:05:01]} 22. Bd3 {[%clk 00:10:54]} {[%emt 00:08:55]} Red8 {[%clk 00:39:06]}
{[%emt 00:06:05]} 23. Qf3 {[%clk 00:08:47]} {[%emt 00:02:38]} Be8 {[%clk
00:38:15]} {[%emt 00:01:21]} 24. Bc4 {[%clk 00:08:05]} {[%emt 00:01:12]} Bf7
{[%clk 00:37:15]} {[%emt 00:01:29]} 25. b4 {[%clk 00:07:24]} {[%emt 00:01:11]}
a5 {[%clk 00:33:31]} {[%emt 00:04:15]} 26. a3 {[%clk 00:07:54]} Rd7 {[%clk
00:28:33]} {[%emt 00:05:27]} 27. Re3 {[%clk 00:07:32]} {[%emt 00:00:52]} e5
{[%clk 00:24:31]} {[%emt 00:04:31]} 28. Bxf7 {[%clk 00:07:35]} {[%emt
00:00:28]} exf4 {[%clk 00:24:46]} {[%emt 00:00:15]} 29. Re8 {[%clk 00:05:33]}
{[%emt 00:02:32]} Rxe8 {[%clk 00:24:15]} {[%emt 00:01:01]} 30. Bxe8 {[%clk
00:06:02]} {[%emt 00:00:01]} Re7 {[%clk 00:24:30]} {[%emt 00:00:15]} 31. Nf5
{[%clk 00:03:26]} {[%emt 00:03:06]} Rxe8 {[%clk 00:24:15]} {[%emt 00:00:44]} 32.
Nxh6 {[%clk 00:03:55]} {[%emt 00:00:01]} gxh6 {[%clk 00:23:51]} {[%emt
00:00:54]} 33. d5 {[%clk 00:03:45]} {[%emt 00:00:40]} cxd5 {[%clk 00:23:58]}
{[%emt 00:00:23]} 34. Bxf6+ {[%clk 00:03:32]} {[%emt 00:00:45]} Kg8 {[%clk
00:24:21]} {[%emt 00:00:06]} 35. Qxd5+ {[%clk 00:01:14]} {[%emt 00:02:48]} Qf7
{[%clk 00:24:33]} {[%emt 00:00:17]} 36. Qxf7+ {[%clk 00:00:36]} {[%emt
00:01:09]} Kxf7 {[%clk 00:24:57]} {[%emt 00:00:06]} 37. Bd8 {[%clk 00:00:34]}
{[%emt 00:00:32]} axb4 {[%clk 00:25:21]} {[%emt 00:00:06]} 38. axb4 {[%clk
00:01:03]} {[%emt 00:00:02]} fxg3 {[%clk 00:25:33]} {[%emt 00:00:19]} 39. hxg3
{[%clk 00:01:21]} {[%emt 00:00:11]} Re3 {[%clk 00:25:12]} {[%emt 00:00:50]} 40.
Kf2 {[%clk 00:00:54]} {[%emt 00:00:58]} Rb3 {[%clk 00:25:27]} {[%emt 00:00:15]}
41. Ba5 {[%clk 00:00:54]} {[%emt 00:00:31]} Ke7 {[%clk 00:24:18]} {[%emt
00:01:38]} 42. Rd6 {[%clk 00:30:14]} {[%emt 00:01:07]} 1-0

[Event "NJSK 2023 Jeugd A"]
[Site "Almelo, Netherlands"]
[Date "2023.05.03"]
[Round "4.5"]
[White "Boeren, Jurriaan"]
[Black "Groen, Jari"]
[Result "1/2-1/2"]
[TimeControl "90min/40moves + 30min + 30sec/move"]
[WhiteElo "1979"]
[BlackElo "2028"]

1. e4 {[%clk 01:30:59]} c5 {[%clk 01:24:36]} {[%emt 00:06:24]} 2. Nf3 {[%clk
01:31:23]} {[%emt 00:00:05]} d6 {[%clk 01:25:01]} {[%emt 00:00:06]} 3. Bb5+
{[%clk 01:31:41]} {[%emt 00:00:11]} Nd7 {[%clk 01:24:54]} {[%emt 00:00:38]} 4.
c3 {[%clk 01:32:02]} {[%emt 00:00:08]} Ngf6 {[%clk 01:23:20]} {[%emt 00:02:04]}
5. Qe2 {[%clk 01:32:15]} {[%emt 00:00:17]} e5 {[%clk 01:12:22]} {[%emt
00:11:28]} 6. d4 {[%clk 01:31:16]} {[%emt 00:01:29]} Qc7 {[%clk 01:10:09]}
{[%emt 00:02:43]} 7. O-O {[%clk 01:31:03]} {[%emt 00:00:43]} Be7 {[%clk
01:08:43]} {[%emt 00:01:56]} 8. d5 {[%clk 01:26:59]} {[%emt 00:04:34]} O-O
{[%clk 01:05:50]} {[%emt 00:03:23]} 9. a4 {[%clk 01:20:59]} {[%emt 00:06:30]}
a6 {[%clk 00:56:39]} {[%emt 00:09:42]} 10. Bd3 {[%clk 01:20:47]} {[%emt
00:00:41]} Re8 {[%clk 00:50:05]} {[%emt 00:07:04]} 11. Nbd2 {[%clk 01:16:02]}
{[%emt 00:05:16]} Nf8 {[%clk 00:48:56]} {[%emt 00:01:38]} 12. h3 {[%clk
01:14:17]} {[%emt 00:02:15]} Ng6 {[%clk 00:47:39]} {[%emt 00:01:48]} 13. Nc4
{[%clk 01:12:51]} {[%emt 00:01:56]} Bd8 {[%clk 00:44:58]} {[%emt 00:03:12]} 14.
Nh2 {[%clk 00:57:53]} {[%emt 00:15:28]} Rb8 {[%clk 00:35:52]} {[%emt 00:09:36]}
15. a5 {[%clk 00:57:24]} {[%emt 00:00:58]} Qe7 {[%clk 00:31:27]} {[%emt
00:04:56]} 16. Re1 {[%clk 00:53:46]} {[%emt 00:04:07]} Bd7 {[%clk 00:29:36]}
{[%emt 00:02:22]} 17. Bg5 {[%clk 00:49:38]} {[%emt 00:04:38]} h6 {[%clk
00:27:54]} {[%emt 00:02:12]} 18. Be3 {[%clk 00:49:23]} {[%emt 00:00:44]} Bb5
{[%clk 00:25:25]} {[%emt 00:02:59]} 19. Nd2 {[%clk 00:47:09]} {[%emt 00:02:44]}
Bd7 {[%clk 00:24:13]} {[%emt 00:01:42]} 20. Nhf1 {[%clk 00:45:07]} {[%emt
00:02:33]} Nh7 {[%clk 00:20:59]} {[%emt 00:03:43]} 21. Ng3 {[%clk 00:43:24]}
{[%emt 00:02:13]} Qf6 {[%clk 00:12:26]} {[%emt 00:09:03]} 22. Nc4 {[%clk
00:30:33]} {[%emt 00:13:20]} Bc7 {[%emt 00:03:53]} 23. b4 {[%clk 00:28:18]}
cxb4 {[%clk 00:11:41]} {[%emt 00:00:37]} 24. cxb4 {[%clk 00:28:47]} {[%emt
00:00:01]} Nf4 {[%clk 00:09:43]} {[%emt 00:02:28]} 25. Bxf4 {[%clk 00:28:17]}
{[%emt 00:01:00]} Qxf4 {[%clk 00:09:01]} {[%emt 00:01:12]} 26. Bc2 {[%clk
00:23:37]} {[%emt 00:05:10]} Bb5 {[%clk 00:07:19]} {[%emt 00:02:13]} 27. Ba4
{[%clk 00:23:23]} {[%emt 00:00:44]} Bxa4 {[%clk 00:05:26]} {[%emt 00:02:22]} 28.
Rxa4 {[%clk 00:23:51]} {[%emt 00:00:02]} g6 {[%clk 00:05:03]} {[%emt 00:00:53]}
29. Ra3 {[%clk 00:21:16]} {[%emt 00:03:05]} Qf6 {[%clk 00:03:44]} {[%emt
00:01:49]} 30. Rc3 {[%clk 00:20:46]} {[%emt 00:01:00]} Rec8 {[%clk 00:00:53]}
{[%emt 00:03:21]} 31. Qg4 {[%clk 00:19:18]} {[%emt 00:01:58]} Bd8 {[%clk
00:00:33]} {[%emt 00:00:51]} 32. Rec1 {[%clk 00:10:40]} {[%emt 00:09:07]} b5
{[%clk 00:00:41]} {[%emt 00:00:22]} 33. axb6 {[%clk 00:10:32]} {[%emt
00:00:38]} Bxb6 {[%clk 00:00:54]} {[%emt 00:00:18]} 34. Nxb6 {[%emt 00:05:54]}
Rxc3 {[%clk 00:01:17]} {[%emt 00:00:06]} 35. Rxc3 {[%clk 00:05:38]} Rxb6 {[%clk
00:01:40]} {[%emt 00:00:07]} 36. Rc8+ {[%clk 00:05:29]} {[%emt 00:00:38]} Nf8
{[%clk 00:01:59]} {[%emt 00:00:12]} 37. Nf5 {[%clk 00:03:50]} {[%emt 00:02:09]}
h5 {[%clk 00:01:45]} {[%emt 00:00:43]} 38. Qg3 {[%clk 00:03:53]} {[%emt
00:00:26]} Rxb4 {[%clk 00:01:31]} {[%emt 00:00:45]} 39. Nh6+ {[%clk 00:02:15]}
{[%emt 00:02:07]} Kg7 {[%clk 00:01:50]} {[%emt 00:00:11]} 40. Nf5+ {[%clk
00:02:21]} {[%emt 00:00:23]} Kg8 {[%clk 00:02:14]} {[%emt 00:00:08]} 41. Nh6+
{[%clk 00:24:47]} {[%emt 00:08:03]} Kg7 {[%clk 00:20:58]} {[%emt 00:11:47]} 42.
Nf5+ {[%clk 00:23:55]} {[%emt 00:01:21]} 1/2-1/2

[Event "NJSK 2023 Jeugd A"]
[Site "Almelo, Netherlands"]
[Date "2023.05.03"]
[Round "4.6"]
[White "Alvares, Thomas"]
[Black "Adams, Oscar"]
[Result "1-0"]
[TimeControl "90min/40moves + 30min + 30sec/move"]
[WhiteElo "1825"]
[BlackElo "1760"]

1. e4 {[%clk 01:30:57]} {[%emt 00:00:02]} e5 {[%clk 01:30:54]} {[%emt
00:00:07]} 2. Nf3 {[%clk 01:30:57]} {[%emt 00:00:30]} Nc6 {[%clk 01:31:17]}
{[%emt 00:00:08]} 3. Bb5 {[%clk 01:30:25]} {[%emt 00:01:01]} Nf6 {[%clk
01:29:36]} {[%emt 00:02:11]} 4. d3 {[%clk 01:29:00]} {[%emt 00:01:55]} Bc5
{[%clk 01:25:21]} {[%emt 00:04:45]} 5. O-O {[%clk 01:29:22]} {[%emt 00:00:07]}
O-O {[%clk 01:25:02]} {[%emt 00:00:50]} 6. Bxc6 {[%clk 01:26:50]} {[%emt
00:03:02]} dxc6 {[%clk 01:24:06]} {[%emt 00:01:27]} 7. Nxe5 {[%clk 01:25:59]}
{[%emt 00:01:20]} Re8 {[%clk 01:22:47]} {[%emt 00:01:49]} 8. Nf3 {[%clk
01:24:22]} {[%emt 00:02:07]} Bg4 {[%clk 01:21:49]} {[%emt 00:01:29]} 9. Be3
{[%clk 01:23:51]} {[%emt 00:01:01]} Bd6 {[%clk 01:21:26]} {[%emt 00:00:53]} 10.
Nbd2 {[%clk 01:23:57]} {[%emt 00:00:23]} Qd7 {[%clk 01:16:16]} {[%emt
00:05:41]} 11. Re1 {[%clk 01:16:38]} {[%emt 00:07:49]} Rad8 {[%clk 01:06:09]}
{[%emt 00:10:38]} 12. Qe2 {[%clk 01:00:55]} {[%emt 00:16:13]} Bh5 {[%clk
01:00:02]} {[%emt 00:06:37]} 13. h3 {[%clk 01:00:53]} {[%emt 00:00:32]} Re6
{[%clk 00:57:33]} {[%emt 00:02:59]} 14. Qf1 {[%clk 00:54:55]} {[%emt 00:06:27]}
Bxf3 {[%clk 00:26:40]} {[%emt 00:31:25]} 15. Nxf3 {[%emt 00:02:17]} Ne8 {[%clk
00:25:07]} 16. Qe2 {[%clk 00:48:42]} {[%emt 00:06:57]} c5 {[%clk 00:22:21]}
{[%emt 00:03:16]} 17. Rad1 {[%clk 00:46:51]} {[%emt 00:02:20]} Bf8 {[%clk
00:19:53]} {[%emt 00:02:59]} 18. c3 {[%clk 00:39:05]} {[%emt 00:08:15]} Qb5
{[%clk 00:18:44]} {[%emt 00:01:39]} 19. Qc2 {[%clk 00:32:53]} {[%emt 00:06:43]}
Ra6 {[%clk 00:15:03]} {[%emt 00:04:11]} 20. a3 {[%clk 00:31:45]} {[%emt
00:01:37]} Rb6 {[%clk 00:15:10]} {[%emt 00:00:24]} 21. Rd2 {[%clk 00:27:54]}
{[%emt 00:04:21]} a5 {[%clk 00:14:18]} {[%emt 00:01:23]} 22. d4 {[%clk
00:26:36]} {[%emt 00:01:47]} c4 {[%clk 00:11:51]} {[%emt 00:02:57]} 23. d5
{[%clk 00:24:31]} {[%emt 00:02:35]} Bc5 {[%clk 00:12:08]} {[%emt 00:00:14]} 24.
a4 {[%clk 00:23:51]} {[%emt 00:01:10]} Qd7 {[%clk 00:08:49]} {[%emt 00:03:49]}
25. Bxc5 {[%clk 00:23:06]} {[%emt 00:01:14]} Rg6 {[%clk 00:09:17]} {[%emt
00:00:02]} 26. Ne5 {[%clk 00:23:08]} {[%emt 00:00:28]} 1-0